fUSD/lending_fUSD_20241122
["ID","MTS","AMOUNT","RATE_DAILY","PERIOD"]
[342984614,1732255833705,-512.64,0.00061789,120]
[342984615,1732255833715,-500.0,0.00061789,120]
[342984616,1732255833726,-503.48198805,0.00061789,120]
[342984617,1732255833736,-2693.67,0.00061789,120]
[342984618,1732255833746,-500.0,0.00061789,120]
[342984619,1732255833756,-500.0,0.00061789,120]
[342984620,1732255833766,-500.0,0.00061789,120]
[342984621,1732255833776,-500.0,0.00061789,120]
[342984622,1732255833787,-568.22,0.00061789,120]
[342984623,1732255833796,-523.30513843,0.00061789,120]
[342984624,1732255833807,-296.9174952,0.00061789,120]
[342984625,1732255833817,-639.24762097,0.00061789,120]
[342984626,1732255833827,-500.0,0.00061789,120]
[342984627,1732255833838,-500.0,0.00061789,21]
[342984628,1732255833850,-500.0,0.00061789,120]
[342984629,1732255833861,-500.0,0.00061789,120]
[342984630,1732255833871,-700.0,0.00061789,120]
[342984631,1732255833881,-500.0,0.00061789,7]
[342984632,1732255833892,-500.0,0.00061789,120]
[342984633,1732255833901,-157.70168644,0.00061789,120]
[342984634,1732255833910,-500.0,0.00061789,120]
[342984635,1732255833920,-500.0,0.00061789,120]
[342984636,1732255833929,-500.0,0.00061789,120]
[342984637,1732255833939,-500.0,0.00061789,120]
[342984638,1732255833949,-500.0,0.00061789,120]
[342984639,1732255833959,-500.0,0.00061789,60]
[342984640,1732255833969,-500.0,0.00061789,120]
[342984641,1732255833980,-524.41901193,0.00061789,120]
[342984642,1732255833990,-523.62,0.00061789,120]
[342984643,1732255833999,-500.0,0.00061789,120]
[342984644,1732255834009,-500.0,0.00061789,120]
[342984645,1732255834020,-500.0,0.00061789,120]
[342984646,1732255834029,-500.0,0.00061789,120]
[342984647,1732255834039,-500.0,0.00061789,120]
[342984648,1732255834049,-500.0,0.00061789,120]
[342984649,1732255834059,-500.0,0.00061789,120]
[342984650,1732255834068,-640.25,0.00061789,120]
[342984651,1732255834079,-500.0,0.00061789,120]
[342984652,1732255834088,-501.07112825,0.00061789,120]
[342984653,1732255834100,-154.06501038,0.00061789,120]
[342984654,1732255834110,-500.0,0.00061789,120]
[342984655,1732255834120,-535.12197229,0.00061789,120]
[342984656,1732255834132,-500.0,0.00061789,120]
[342984657,1732255834142,-176.37089523,0.00061789,120]
[342984658,1732255834155,-500.0,0.00061789,120]
[342984659,1732255834165,-500.0,0.00061789,120]
[342984660,1732255834176,-500.0,0.00061789,120]
[342984661,1732255834186,-252.2473929,0.00061789,120]
[342984662,1732255834197,-500.0,0.00061789,120]
[342984663,1732255834207,-500.0,0.00061789,120]
[342984664,1732255834217,-502.01237291,0.00061789,120]
[342984665,1732255834227,-571.09637883,0.00061789,120]
[342984666,1732255834239,-500.0,0.00061789,120]
[342984667,1732255834249,-504.69757034,0.00061789,120]
[342984668,1732255834259,-498.19314701,0.00061789,120]
[342984669,1732255834271,-500.0,0.00061789,120]
[342984670,1732255834282,-500.0,0.00061789,120]
[342984671,1732255834292,-394.10093253,0.00061789,120]
[342984672,1732255834303,-503.73814467,0.00061789,120]
[342984673,1732255834313,-500.0,0.00061789,120]
[342984674,1732255834324,-502.02110279,0.00061789,120]
[342984675,1732255834334,-500.0,0.00061789,120]
[342984676,1732255834344,-500.0,0.00061789,120]
[342984677,1732255834355,-501.53557343,0.00061789,120]
[342984678,1732255834366,-500.0,0.00061789,120]
[342984679,1732255834376,-500.0,0.00061789,120]
[342984680,1732255834385,-6569.84,0.00061789,120]
[342984681,1732255834395,-500.0,0.00061789,120]
[342984682,1732255834405,-500.0,0.00061789,120]
[342984683,1732255834415,-508.83241,0.00061789,120]
[342984684,1732255834425,-500.0,0.00061789,120]
[342984685,1732255834435,-500.0,0.00061789,120]
[342984686,1732255834444,-1734.11,0.00061789,120]
[342984687,1732255834455,-500.0,0.00061789,120]
[342984688,1732255834465,-514.21,0.00061789,120]
[342984689,1732255834475,-1000.02,0.00061789,120]
[342984690,1732255834484,-500.0,0.00061789,120]
[342984691,1732255834494,-500.0,0.00061789,120]
[342984692,1732255834504,-500.0,0.00061789,120]
[342984693,1732255834514,-500.0,0.00061789,120]
[342984694,1732255834524,-500.0,0.00061789,120]
[342984695,1732255834534,-500.0,0.00061789,120]
[342984696,1732255834545,-500.0,0.00061789,120]
[342984697,1732255834555,-214.78,0.00061789,120]
[342984698,1732255834564,-500.0,0.00061789,120]
[342984699,1732255834576,-516.15,0.00061789,120]
[342984700,1732255834586,-500.0,0.00061789,120]
[342984701,1732255834599,-500.0,0.00061789,120]
[342984702,1732255834609,-502.71113803,0.00061789,120]
[342984703,1732255834620,-199.09383025,0.00061789,120]
[342984704,1732255834630,-500.0,0.00061789,120]
[342984705,1732255834640,-569.5,0.00061789,120]
[342984706,1732255834649,-213.29,0.00061789,120]
[342984707,1732255834659,-500.0,0.00061789,120]
[342984708,1732255834669,-500.0,0.00061789,120]
[342984709,1732255834679,-501.44,0.00061789,120]
[342984710,1732255834689,-397.66355563,0.00061789,120]
[342984711,1732255834699,-500.0,0.00061789,120]
[342984712,1732255834709,-500.0,0.00061789,120]
[342984713,1732255834718,-35351.6675,0.0006179,2]
[342984714,1732255834727,-62838.83553766,0.0006179,2]
[342984717,1732255837592,-254.85887675,0.00061789,120]
[342984718,1732255837720,-245.14112325,0.00061789,120]
[342984719,1732255837730,-500.0,0.00061789,120]
[342984720,1732255837739,-628.57,0.00061789,120]
[342984721,1732255837748,-535.61,0.00061789,120]
[342984722,1732255837759,-430.32506455,0.00061789,120]
[342984723,1732255837768,-500.0,0.00061789,120]
[342984724,1732255837778,-7823.5440897,0.0006179,2]
[342984725,1732255837789,-1966.89684553,0.0006179,2]
[342984726,1732255837805,-172370.72352711,0.0006179,2]
[342984727,1732255837814,-165.22820659,0.000618,7]
[342984728,1732255837824,-504.76805763,0.00061833,15]
[342984729,1732255837833,-165.47,0.0006188,2]
[342984730,1732255837843,-500.0,0.00061889,120]
[342984731,1732255837855,-500.0,0.00061889,120]
[342984732,1732255837864,-500.0,0.00061889,120]
[342984733,1732255837873,-312.45043147,0.00061889,120]
[342984734,1732255837883,-579.15,0.00061889,120]
[342984735,1732255837892,-500.0,0.00061889,120]
[342984736,1732255837902,-351.22712231,0.00061889,120]
[342984737,1732255837912,-500.0,0.00061889,120]
[342984738,1732255837922,-500.0,0.00061889,120]
[342984739,1732255837931,-500.0,0.00061889,120]
[342984740,1732255837941,-500.0,0.00061889,120]
[342984741,1732255837950,-267.25062763,0.00061889,120]
[342984742,1732255837960,-500.0,0.00061889,120]
[342984743,1732255837969,-251.23,0.00061889,120]
[342984744,1732255837979,-500.0,0.00061889,120]
[342984745,1732255837988,-500.0,0.00061889,120]
[342984746,1732255837998,-500.0,0.00061889,120]
[342984747,1732255838007,-659.35,0.00061889,120]
[342984748,1732255838017,-659.35,0.00061889,120]
[342984749,1732255838026,-500.0,0.00061889,120]
[342984750,1732255838036,-500.0,0.00061889,120]
[342984751,1732255838045,-500.0,0.00061889,120]
[342984752,1732255838055,-500.0,0.00061889,120]
[342984753,1732255838064,-500.0,0.00061889,120]
[342984754,1732255838074,-500.0,0.00061889,120]
[342984755,1732255838083,-500.0,0.00061889,120]
[342984756,1732255838092,-500.0,0.00061889,120]
[342984757,1732255838106,-500.0,0.00061889,120]
[342984758,1732255838117,-510.21686789,0.00061889,120]
[342984759,1732255838126,-500.0,0.00061889,120]
[342984760,1732255838136,-500.0,0.00061889,120]
[342984761,1732255838150,-500.0,0.00061889,120]
[342984762,1732255838160,-500.0,0.00061889,120]
[342984763,1732255838169,-500.0,0.00061889,120]
[342984764,1732255838178,-500.0,0.00061889,120]
[342984765,1732255838190,-631.8054577,0.00061889,120]
[342984766,1732255838199,-688.63,0.00061889,120]
[342984767,1732255838209,-688.63,0.00061889,120]
[342984769,1732255838219,-528.14,0.00061889,120]
[342984771,1732255838229,-528.14,0.00061889,120]
[342984773,1732255838238,-2053.47,0.00061889,120]
[342984775,1732255838248,-2053.47,0.00061889,120]
[342984777,1732255838257,-500.0,0.00061889,120]
[342984779,1732255838267,-500.0,0.00061889,120]
[342984781,1732255838275,-500.0,0.00061889,120]
[342984783,1732255838285,-500.0,0.00061889,120]
[342984784,1732255838294,-500.0,0.00061889,120]
[342984787,1732255838304,-500.0,0.00061889,120]
[342984788,1732255838313,-500.0,0.00061889,120]
[342984791,1732255838323,-500.0,0.00061889,120]
[342984793,1732255838332,-414.91884054,0.00061889,120]
[342984795,1732255838342,-500.0,0.00061889,120]
[342984797,1732255838353,-253.90551503,0.00061889,120]
[342984799,1732255838363,-500.0,0.00061889,120]
[342984801,1732255838372,-500.0,0.00061889,120]
[342984803,1732255838382,-235.69193989,0.00061889,120]
[342984804,1732255838391,-456.07908388,0.00062,120]
[342984806,1732255838402,-7500.0,0.00062,120]
[342984808,1732255838412,-500.0,0.00062037,120]
[342984810,1732255838421,-500.0,0.00062037,120]
[342984812,1732255838431,-226.54206613,0.00062037,120]
[342984815,1732255838441,-500.0,0.00062037,120]
[342984817,1732255838451,-500.0,0.00062037,120]
[342984819,1732255838461,-633.11,0.00062037,120]
[342984820,1732255838470,-500.0,0.00062037,120]
[342984822,1732255838479,-7500.0,0.00062038,120]
[342984823,1732255838488,-7500.0,0.00062075,120]
[342984824,1732255838497,-792.0,0.00062079,60]
[342984825,1732255838507,-7500.0,0.00062113,120]
[342984826,1732255838516,-7500.0,0.0006215,120]
[342984827,1732255838526,-7500.0,0.00062188,120]
[342984828,1732255838535,-7500.0,0.00062225,120]
[342984829,1732255838544,-7500.0,0.00062263,120]
[342984830,1732255838553,-7500.0,0.000623,120]
[342984831,1732255838563,-7500.0,0.00062338,120]
[342984832,1732255838572,-831.96467,0.0006237,111]
[342984833,1732255838582,-7500.0,0.00062375,120]
[342984834,1732255838591,-283.96,0.00062397,120]
[342984835,1732255838604,-1000.0,0.000624,22]
[342984836,1732255838614,-7500.0,0.00062413,120]
[342984837,1732255838624,-3708.65,0.0006245,120]
[342984838,1732255838633,-2100.0,0.000625,22]
[342984839,1732255838645,-831.96468,0.0006253,112]
[342984840,1732255838655,-500.0,0.00062599,120]
[342984841,1732255838665,-500.0,0.00062599,120]
[342984842,1732255838675,-500.0,0.00062599,120]
[342984843,1732255838684,-500.0,0.00062599,120]
[342984844,1732255838694,-427.34147508,0.00062599,120]
[342984845,1732255838703,-500.0,0.00062599,120]
[342984846,1732255838713,-688.63,0.00062599,120]
[342984847,1732255838723,-528.14,0.00062599,120]
[342984848,1732255838732,-500.0,0.00062599,120]
[342984849,1732255838743,-500.0,0.00062599,120]
[342984850,1732255838751,-597.90707192,0.00062599,120]
[342984851,1732255838761,-500.0,0.00062599,120]
[342984852,1732255838770,-3200.0,0.000626,22]
[342984853,1732255838779,-659.35,0.00062699,120]
[342984854,1732255838788,-500.0,0.00062699,120]
[342984855,1732255838797,-500.0,0.00062699,120]
[342984856,1732255838808,-500.0,0.00062699,120]
[342984857,1732255838817,-2053.47,0.00062699,120]
[342984858,1732255838827,-500.0,0.00062699,120]
[342984859,1732255838837,-4300.0,0.000627,22]
[342984860,1732255838847,-792.0,0.00062706,60]
[342984861,1732255838860,-399.19816994,0.00062706,60]
[342984862,1732255838872,-150.99,0.00062789,120]
[342984863,1732255838882,-500.0,0.00062799,120]
[342984864,1732255838892,-500.0,0.00062799,120]
[342984865,1732255838902,-500.0,0.00062799,120]
[342984866,1732255838911,-500.0,0.00062799,120]
[342984867,1732255838920,-500.0,0.00062799,120]
[342984868,1732255838929,-500.0,0.00062799,120]
[342984869,1732255838938,-500.0,0.00062799,120]
[342984870,1732255838948,-500.0,0.00062799,120]
[342984871,1732255838957,-500.0,0.00062799,120]
[342984872,1732255838966,-500.0,0.00062799,120]
[342984873,1732255838976,-500.0,0.00062799,120]
[342984874,1732255838985,-500.0,0.00062799,120]
[342984875,1732255838995,-245.82669788,0.00062799,120]
[342984876,1732255839005,-500.0,0.00062799,120]
[342984877,1732255839015,-500.0,0.00062799,120]
[342984878,1732255839024,-500.0,0.00062799,120]
[342984879,1732255839034,-500.0,0.00062799,120]
[342984880,1732255839044,-500.0,0.00062799,120]
[342984881,1732255839054,-659.35,0.00062799,120]
[342984882,1732255839064,-500.0,0.00062799,120]
[342984883,1732255839073,-500.0,0.00062799,120]
[342984884,1732255839083,-500.0,0.00062799,120]
[342984885,1732255839093,-500.0,0.00062799,120]
[342984886,1732255839107,-264.67378605,0.00062799,120]
[342984887,1732255839118,-500.0,0.00062799,120]
[342984888,1732255839128,-500.0,0.00062799,120]
[342984889,1732255839141,-501.46742575,0.00062799,120]
[342984890,1732255839150,-500.0,0.00062799,120]
[342984891,1732255839160,-500.0,0.00062799,120]
[342984892,1732255839169,-500.0,0.00062799,120]
[342984893,1732255839180,-503.29389944,0.00062799,120]
[342984894,1732255839190,-500.0,0.00062799,120]
[342984895,1732255839200,-581.33,0.00062799,120]
[342984896,1732255839212,-500.0,0.00062799,120]
[342984897,1732255839222,-502.99994359,0.00062799,120]
[342984898,1732255839233,-500.45382805,0.00062799,120]
[342984899,1732255839243,-688.63,0.00062799,120]
[342984900,1732255839254,-500.0,0.00062799,120]
[342984901,1732255839266,-500.65873671,0.00062799,120]
[342984902,1732255839276,-150.22701482,0.00062799,120]
[342984903,1732255839285,-223.18215992,0.00062799,120]
[342984904,1732255839295,-528.14,0.00062799,120]
[342984905,1732255839305,-503.91510153,0.00062799,120]
[342984906,1732255839315,-500.0,0.00062799,120]
[342984907,1732255839324,-500.509557,0.00062799,120]
[342984908,1732255839334,-501.31762008,0.00062799,120]
[342984909,1732255839343,-2053.47,0.00062799,120]
[342984910,1732255839357,-500.0,0.00062799,120]
[342984911,1732255839367,-500.0,0.00062799,120]
[342984912,1732255839376,-500.0,0.00062799,120]
[342984913,1732255839386,-550.43715146,0.00062799,120]
[342984914,1732255839395,-500.0,0.00062799,120]
[342984915,1732255839406,-2500.0,0.000628,12]
[342984916,1732255839416,-162.87059995,0.000628,8]
[342984917,1732255839425,-682.18509645,0.000628,91]
[342984918,1732255839434,-2500.0,0.000628,120]
[342984919,1732255839443,-173.1312734,0.000628,42]
[342984920,1732255839452,-5400.0,0.000628,22]
[342984921,1732255839462,-501.83472155,0.00062873,15]
[342984922,1732255839471,-48878.0,0.00062877,120]
[342984923,1732255839482,-150.99,0.0006289,120]
[342984924,1732255839491,-500.0,0.00062898,120]
[342984925,1732255839501,-500.0,0.00062898,120]
[342984926,1732255839511,-500.0,0.00062898,120]
[342984927,1732255839521,-500.0,0.00062898,120]
[342984928,1732255839530,-500.0,0.00062898,120]
[342984930,1732255839540,-1734.11,0.00062898,120]
[342984932,1732255839550,-500.0,0.00062899,120]
[342984933,1732255839559,-500.0,0.00062899,120]
[342984934,1732255839568,-500.0,0.00062899,120]
[342984935,1732255839578,-500.0,0.00062899,120]
[342984936,1732255839588,-500.0,0.00062899,120]
[342984937,1732255839597,-233.03620379,0.00062899,120]
[342984938,1732255839609,-500.0,0.00062899,120]
[342984939,1732255839618,-500.0,0.00062899,120]
[342984940,1732255839628,-500.0,0.00062899,120]
[342984941,1732255839637,-500.0,0.00062899,120]
[342984942,1732255839646,-345.25,0.00062899,120]
[342984943,1732255839656,-500.0,0.00062899,120]
[342984944,1732255839666,-403.18596959,0.00062899,120]
[342984945,1732255839675,-500.0,0.00062899,120]
[342984946,1732255839684,-312.53533676,0.00062899,120]
[342984947,1732255839694,-500.0,0.00062899,120]
[342984948,1732255839703,-291.81494546,0.00062899,120]
[342984949,1732255839712,-520.93,0.00062899,120]
[342984950,1732255839722,-431.36011787,0.00062899,120]
[342984951,1732255839731,-500.0,0.00062899,120]
[342984952,1732255839740,-500.0,0.00062899,120]
[342984953,1732255839749,-500.0,0.00062899,120]
[342984954,1732255839759,-500.0,0.00062899,120]
[342984955,1732255839768,-500.0,0.00062899,120]
[342984956,1732255839777,-500.0,0.00062899,120]
[342984957,1732255839787,-500.0,0.00062899,120]
[342984958,1732255839797,-500.0,0.00062899,120]
[342984959,1732255839806,-500.0,0.00062899,120]
[342984960,1732255839815,-309.75,0.00062899,120]
[342984961,1732255839825,-291.19270097,0.00062899,120]
[342984962,1732255839835,-500.0,0.00062899,120]
[342984963,1732255839844,-500.0,0.00062899,120]
[342984964,1732255839855,-500.0,0.00062899,120]
[342984965,1732255839864,-500.0,0.00062899,120]
[342984966,1732255839873,-203.76,0.00062899,120]
[342984967,1732255839883,-526.83,0.00062899,120]
[342984968,1732255839892,-659.35,0.00062899,120]
[342984969,1732255839901,-500.0,0.00062899,120]
[342984970,1732255839910,-500.0,0.00062899,120]
[342984971,1732255839918,-500.0,0.00062899,120]
[342984972,1732255840014,-500.0,0.00062899,120]
[342984973,1732255840023,-862.41,0.00062899,120]
[342984974,1732255840032,-500.0,0.00062899,120]
[342984975,1732255840038,-1546.17,0.00062899,120]
[342984976,1732255840046,-520.49348231,0.00062899,120]
[342984977,1732255840052,-1636.28,0.00062899,120]
[342984978,1732255840059,-500.0,0.00062899,120]
[342984979,1732255840065,-500.0,0.00062899,120]
[342984980,1732255840072,-500.0,0.00062899,120]
[342984981,1732255840078,-500.0,0.00062899,120]
[342984982,1732255840085,-500.0,0.00062899,120]
[342984983,1732255840092,-1000.0,0.00062899,120]
[342984984,1732255840101,-1000.0,0.00062899,120]
[342984985,1732255840109,-1000.0,0.00062899,120]
[342984986,1732255840115,-500.0,0.00062899,120]
[342984987,1732255840121,-500.0,0.00062899,120]
[342984988,1732255840128,-500.0,0.00062899,120]
[342984989,1732255840134,-500.0,0.00062899,120]
[342984990,1732255840146,-189.402402,0.00062899,120]
[342984991,1732255840152,-531.62,0.00062899,120]
[342984992,1732255840160,-512.64,0.00062899,120]
[342984993,1732255840167,-500.0,0.00062899,120]
[342984995,1732255840175,-2693.67,0.00062899,120]
[342984996,1732255840183,-2693.67,0.00062899,120]
[342984997,1732255840192,-2693.67,0.00062899,120]
[342984998,1732255840199,-617.79,0.00062899,120]
[342984999,1732255840207,-432.76,0.00062899,120]
[342985000,1732255840215,-436.37,0.00062899,120]
[342985001,1732255840224,-500.0,0.00062899,120]
[342985002,1732255840232,-245.2,0.00062899,120]
[342985003,1732255840240,-500.0,0.00062899,120]
[342985004,1732255840247,-562.87,0.00062899,120]
[342985005,1732255840255,-500.0,0.00062899,21]
[342985006,1732255840262,-500.0,0.00062899,120]
[342985007,1732255840271,-500.0,0.00062899,21]
[342985008,1732255840279,-500.0,0.00062899,21]
[342985009,1732255840286,-500.0,0.00062899,120]
[342985010,1732255840294,-500.0,0.00062899,120]
[342985011,1732255840301,-500.0,0.00062899,120]
[342985012,1732255840310,-500.0,0.00062899,7]
[342985013,1732255840318,-500.0,0.00062899,120]
[342985014,1732255840325,-500.0,0.00062899,120]
[342985015,1732255840331,-688.63,0.00062899,120]
[342985016,1732255840338,-502.07896371,0.00062899,120]
[342985017,1732255840345,-500.0,0.00062899,120]
[342985018,1732255840352,-500.0,0.00062899,120]
[342985019,1732255840359,-500.0,0.00062899,120]
[342985020,1732255840366,-500.0,0.00062899,120]
[342985021,1732255840373,-500.0,0.00062899,120]
[342985022,1732255840380,-596.64,0.00062899,60]
[342985023,1732255840388,-500.0,0.00062899,120]
[342985024,1732255840395,-528.14,0.00062899,120]
[342985025,1732255840404,-500.0,0.00062899,120]
[342985026,1732255840412,-390.33,0.00062899,120]
[342985027,1732255840422,-500.0,0.00062899,120]
[342985028,1732255840431,-500.0,0.00062899,120]
[342985029,1732255840441,-500.0,0.00062899,120]
[342985030,1732255840451,-184.23080455,0.00062899,120]
[342985031,1732255840461,-500.0,0.00062899,120]
[342985032,1732255840470,-273.84,0.00062899,120]
[342985033,1732255840480,-326.36,0.00062899,120]
[342985034,1732255840489,-500.0,0.00062899,120]
[342985035,1732255840499,-2053.47,0.00062899,120]
[342985036,1732255840509,-500.0,0.00062899,120]
[342985037,1732255840519,-500.0,0.00062899,120]
[342985038,1732255840528,-500.0,0.00062899,120]
[342985039,1732255840537,-247.64680311,0.00062899,120]
[342985040,1732255840546,-500.0,0.00062899,120]
[342985041,1732255840555,-181.75,0.00062899,120]
[342985042,1732255840564,-500.0,0.00062899,120]
[342985043,1732255840573,-500.0,0.00062899,120]
[342985044,1732255840582,-500.0,0.00062899,120]
[342985045,1732255840592,-500.0,0.00062899,120]
[342985046,1732255840602,-412.77599297,0.00062899,120]
[342985047,1732255840611,-500.0,0.00062899,120]
[342985048,1732255840620,-500.0,0.00062899,120]
[342985049,1732255840630,-500.0,0.00062899,120]
[342985050,1732255840639,-500.0,0.00062899,120]
[342985051,1732255840648,-500.0,0.00062899,120]
[342985052,1732255840657,-500.0,0.00062899,120]
[342985053,1732255840667,-303.3388663,0.00062899,120]
[342985054,1732255840676,-348.74,0.00062899,120]
[342985055,1732255840685,-6569.84,0.00062899,120]
[342985056,1732255840695,-500.0,0.00062899,120]
[342985057,1732255840704,-500.0,0.00062899,120]
[342985058,1732255840713,-500.0,0.00062899,120]
[342985059,1732255840722,-500.0,0.00062899,120]
[342985060,1732255840731,-487.42373521,0.00062899,120]
[342985061,1732255840740,-500.0,0.00062899,120]
[342985062,1732255840749,-1734.11,0.00062899,120]
[342985063,1732255840758,-256.92,0.00062899,120]
[342985064,1732255840767,-1734.11,0.00062899,120]
[342985065,1732255840777,-1734.11,0.00062899,120]
[342985066,1732255840786,-1000.02,0.00062899,120]
[342985067,1732255840795,-1000.02,0.00062899,120]
[342985068,1732255840805,-1000.02,0.00062899,120]
[342985069,1732255840815,-500.0,0.00062899,120]
[342985070,1732255840824,-500.0,0.00062899,120]
[342985071,1732255840833,-500.0,0.00062899,120]
[342985072,1732255840843,-500.0,0.00062899,120]
[342985073,1732255840852,-500.0,0.00062899,120]
[342985074,1732255840861,-301.11,0.00062899,120]
[342985075,1732255840871,-555.55761308,0.00062899,120]
[342985076,1732255840880,-500.0,0.00062899,120]
[342985077,1732255840889,-516.15,0.00062899,120]
[342985078,1732255840898,-516.15,0.00062899,120]
[342985079,1732255840907,-516.15,0.00062899,120]
[342985080,1732255840917,-500.0,0.00062899,120]
[342985081,1732255840926,-500.0,0.00062899,120]
[342985082,1732255840936,-500.0,0.00062899,120]
[342985083,1732255840945,-500.0,0.00062899,120]
[342985084,1732255840955,-500.0,0.00062899,120]
[342985085,1732255840964,-500.0,0.00062899,120]
[342985086,1732255840974,-196.93,0.00062899,120]
[342985087,1732255840984,-352.70511765,0.00062899,120]
[342985088,1732255840995,-354.26468998,0.00062899,120]
[342985089,1732255841004,-500.0,0.00062899,120]
[342985090,1732255841014,-500.0,0.00062899,120]
[342985091,1732255841024,-500.0,0.00062899,120]
[342985092,1732255841033,-500.0,0.00062899,120]
[342985093,1732255841043,-500.0,0.00062899,120]
[342985094,1732255841053,-483.0,0.000629,25]
[342985095,1732255841062,-147849.3561,0.000629,2]
[342985096,1732255841072,-1000.0,0.000629,120]
[342985097,1732255841081,-10344.6639,0.000629,2]
[342985098,1732255841091,-610950.5850655,0.000629,120]
[342985099,1732255841102,-1000.0,0.000629,22]
[342985100,1732255841112,-336.57832004,0.000629,120]
[342985101,1732255841121,-1022.96618068,0.000629,2]
[342985102,1732255841132,-177.77777778,0.000629,2]
[342985103,1732255841143,-2033.28326376,0.000629,2]
[342985104,1732255841153,-266.39908262,0.000629,2]
[342985105,1732255841162,-1000.0,0.00062958,120]
[342985106,1732255841173,-500.0,0.00062958,120]
[342985107,1732255841183,-2693.67,0.00062958,120]
[342985108,1732255841193,-500.0,0.00062958,21]
[342985109,1732255841203,-500.0,0.00062958,120]
[342985110,1732255841214,-500.0,0.00062958,120]
[342985111,1732255841225,-500.0,0.00062958,120]
[342985112,1732255841236,-1000.02,0.00062958,120]
[342985113,1732255841246,-516.15,0.00062958,120]
[342985114,1732255841257,-500.0,0.00062958,120]
[342985115,1732255841267,-500.32466504,0.00062973,15]
[342985116,1732255841278,-232.39,0.00062973,2]
[342985117,1732255841287,-150.0,0.00062986,120]
[342985118,1732255841297,-404.9106,0.00062998,120]
[342985119,1732255841307,-500.0,0.00062998,120]
[342985120,1732255841316,-500.0,0.00062998,120]
[342985121,1732255841326,-1734.11,0.00062998,120]
[342985122,1732255841335,-1734.11,0.00062998,120]
[342985123,1732255841344,-500.0,0.00062998,120]
[342985124,1732255841356,-500.0,0.00062998,120]
[342985125,1732255841366,-500.0,0.00062999,120]
[342985126,1732255841376,-250.0,0.00062999,120]
[342985127,1732255841386,-500.0,0.00062999,120]
[342985128,1732255841395,-750.0,0.00062999,120]
[342985129,1732255841406,-1000.0,0.00062999,120]
[342985130,1732255841416,-1250.0,0.00062999,120]
[342985131,1732255841426,-1500.0,0.00062999,120]
[342985132,1732255841436,-1234.96419103,0.00062999,120]
[342985133,1732255841446,-500.0,0.00062999,120]
[342985134,1732255841455,-500.0,0.00062999,120]
[342985135,1732255841465,-500.0,0.00062999,120]
[342985136,1732255841474,-500.0,0.00062999,120]
[342985137,1732255841484,-284.35301926,0.00062999,120]
[342985138,1732255841493,-500.0,0.00062999,120]
[342985139,1732255841503,-500.0,0.00062999,120]
[342985140,1732255841513,-500.0,0.00062999,120]
[342985141,1732255841522,-500.0,0.00062999,120]
[342985142,1732255841531,-500.0,0.00062999,120]
[342985143,1732255841541,-500.0,0.00062999,120]
[342985144,1732255841551,-500.0,0.00062999,120]
[342985145,1732255841561,-500.0,0.00062999,120]